Cogmind - Beta 16.1 @@@ ROGUE MODE // 2026.04.19 @ 09:57:11 Player: Sharded of Serpulo Result: Destroyed by as-65466 with Assembled Blade Performance ------------- Evolutions (0) 0 Regions Visited (2) 400 Robots Destroyed (30) 150 Value Destroyed (645) 645 Prototype IDs (0) 0 Alien Tech Used (0) 0 Bonus (0) 0 TOTAL SCORE: 1195 Bonus ------- None Cogmind --------- Core Integrity 0/250 Matter 290/300 Energy 125/125 System Corruption 0% Temperature Cool (0) Movement Treading (240) Ox1 Location -10/Mines Parts ------- > --- POWER (1) -------- Light Ion Engine > --- PROPULSION (2) --- Light Treads Improved Treads > --- UTILITY (2) ------ High-capacity Storage Unit Signal Interpreter > --- WEAPON (2) ------- Assault Rifle Flail > --- INVENTORY (20) --- Improved Treads Improved Treads Improved Treads High-capacity Storage Unit Sensor Array Small Laser Small Laser Particle Gun Assault Rifle Light Assault Rifle Peak State ------------ > --- POWER ------------ Light Ion Engine > --- PROPULSION ------- Light Treads Improved Treads > --- UTILITY ---------- High-capacity Storage Unit Signal Interpreter > --- WEAPON ----------- Assault Rifle Flail > --- INVENTORY -------- Improved Treads Improved Treads Improved Treads High-capacity Storage Unit Sensor Array Small Laser Small Laser Particle Gun Assault Rifle Light Assault Rifle [Rating: 10] Favorites ----------- Power Light Ion Engine Engine Light Ion Engine Propulsion Light Treads Treads Light Treads Utility High-capacity Storage Unit Storage High-capacity Storage Unit Processor Signal Interpreter Weapon Assault Rifle Energy Gun Small Laser Ballistic Gun Assault Rifle Impact Weapon Flail Slashing Weapon Mining Claw Build | -11 -10 -10 ------- Run | Yrd Mat Min Slots Evolved . | . . . Power . | . . . Propulsion . | . . . Utility . | . . . Weapon . | . . . Parts Attached 22 | 7 9 6 Power 3 | 1 1 1 Engine 3 | 1 1 1 Core . | . . . Reactor . | . . . Propulsion 5 | 2 2 1 Treads 5 | 2 2 1 Leg . | . . . Wheel . | . . . Hover . | . . . Flight . | . . . Utility 3 | 1 2 . Device . | . . . Storage 2 | 1 1 . Processor 1 | . 1 . Hackware . | . . . Protection . | . . . Artifact . | . . . Weapon 11 | 3 4 4 Energy Gun 4 | 1 2 1 Energy Cannon . | . . . Ballistic Gun 5 | 2 1 2 Ballistic Cannon . | . . . Launcher . | . . . Special Weapon . | . . . Impact Weapon 1 | . . 1 Slashing Weapon 1 | . 1 . Piercing Weapon . | . . . Special Melee Weapon . | . . . Unidentified Prototypes . | . . . Parts Lost 9 | . 4 5 Power 2 | . 1 1 Propulsion 3 | . 1 2 Utility . | . . . Weapon 4 | . 2 2 Highest Loss Streak 3 | . 3 3 To Critical Strikes . | . . . Average Backups 6 | 1 4 9 Power . | . . . Propulsion 1 | . 1 3 Utility . | . . 2 Weapon 2 | . 2 4 Tool/Special . | . . . Unused Backups 8 | 1 . 7 Power . | . . . Propulsion 3 | . . 3 Utility 2 | . . 2 Weapon 3 | 1 . 2 Tool/Special . | . . . Average Slot Usage (%) 98 | . 97 98 Engine 13 | . 13 12 Treads 27 | . 27 28 Storage 18 | . 20 14 Processor 9 | . 7 14 Energy Gun 11 | . 12 10 Ballistic Gun 15 | . 14 17 Peak Build Rating 10 | 6 8 10 Average Rating 7 | 4 7 8 On Entrance 4 | . 6 8 Avg Prop Armor Cover (%) . | . . . Naked Turns . | . . . Heaviest Build 54 | 14 54 47 Greatest Support 43 | 40 40 43 Greatest Overweight (x) 2 | . 2 1 Average Overweight (x) . | . . . Largest Inventory Capacity 20 | 8 20 20 Average Capacity 19 | 7 19 20 Most Carried 12 | 3 12 12 Average Carried 6 | 1 4 9 Final Capacity 20 | 8 20 20 Final Carried 12 | 1 12 10 Class Distribution -------------------- 95% | Mutant 4% | Scavenger-Mutant Dominant Class ---------------- Mutant | -10/Materials Mutant | -10/Mines Resources | -11 -10 -10 ----------- Run | Yrd Mat Min Matter Collected 972 | 250 500 222 Remotely . | . . . Salvage Created 930 | 68 544 318 Parts 53 | 7 33 13 Haulers Intercepted 2 | . 2 . Recyclers Shooed 1 | . 1 . Parts Field Recycled . | . . . Retrieved Matter . | . . . Parts Self-Destructed . | . . . Prevented . | . . . Parts Restored . | . . . Kills | -11 -10 -10 ------- Run | Yrd Mat Min Combat Hostiles Destroyed 20 | . 12 8 Guns 20 | . 12 8 Classes Destroyed 7 | 1 6 . Worker 1 | . 1 . Tunneler 5 | 3 1 1 Hauler 2 | . 2 . Operator 1 | . 1 . Watcher 1 | . 1 . Swarmer 8 | . 6 2 Grunt 12 | . 6 6 Best Kill Streak 5 | 2 5 3 Combat Bots Only 3 | . 3 2 Max Kills in Single Turn 2 | 1 2 1 Gunslinging . | . . . Exploded . | . . . Melee . | . . . Uniques/NPCs Destroyed . | . . . Combat | -11 -10 -10 -------- Run | Yrd Mat Min Hostile Shots Fired 161 | . 85 76 Missed 38 | . 14 24 Hits 123 | . 71 52 Melee 1 | . . 1 Projectile 122 | . 71 51 Critical Strikes 2 | . 1 1 Damage Taken 1546 | . 839 707 Core 260 | . 98 162 Absorbed by Shields . | . . . Core Remaining (%) 100 | 100 . . Volleys Fired 107 | 6 62 39 Largest 2 | 2 2 2 Hottest 90 | 60 90 90 Shots Fired 214 | 12 124 78 Gun 214 | 12 124 78 Cannon . | . . . Launcher . | . . . Special . | . . . Kinetic 156 | 8 107 41 Thermal 54 | . 17 37 Explosive . | . . . Electromagnetic 4 | 4 . . Robot Hit Streak 11 | 7 11 8 Robot Miss Streak 4 | 1 4 2 Penetration Max . | . . . Secondary Targets 3 | . 2 1 Max Gunslinging Chain 1 | . 1 1 Shots Hit Robots 140 | 9 79 52 Core Hits 48 | 3 27 18 Critical Kills . | . . . Critical Parts Destroyed 1 | . . 1 Critical Strikes 1 | . . 1 Destroy 1 | . . 1 Melee Attacks 7 | . 2 5 Impact 5 | . . 5 Slashing 2 | . 2 . Piercing . | . . . Sneak Attacks 1 | . 1 . Combat Hostiles . | . . . Follow-up Attacks . | . . . Damage Inflicted 1759 | 114 1023 622 Guns 1699 | 114 963 622 Cannons . | . . . Explosions . | . . . Melee 60 | . 60 . Ramming . | . . . Kinetic 1218 | 60 804 354 Thermal 427 | . 159 268 Explosive . | . . . Electromagnetic 54 | 54 . . Impact . | . . . Slashing 60 | . 60 . Piercing . | . . . Highest Corruption . | . . . Average Corruption . | . . . Corruption Purged . | . . . Corruption Blocked . | . . . Overload Shots . | . . . Overflow Damage 30 | . 30 . Projectiles . | . . . Explosions . | . . . Melee 30 | . 30 . Knockbacks . | . . . Impact . | . . . Kinetic . | . . . Secondary . | . . . Self-Inflicted Damage . | . . . Shots . | . . . Rammed . | . . . Targets Rammed . | . . . Kicked . | . . . Crushed . | . . . Highest Temperature 271 | . 228 271 Average Temperature 82 | . 69 91 Received Heat Transfer 783 | . 384 399 Siege Activations . | . . . Martial Activations . | . . . Shielding Activations . | . . . Robots Disrupted . | . . . Combat Hostiles . | . . . Robots Corrupted . | . . . Combat Hostiles . | . . . Parts Fried . | . . . Impact Corruptions . | . . . Robots Melted . | . . . Combat Hostiles . | . . . Parts Melted 1 | . . 1 Heat Transferred 1057 | . 445 612 Parts Sabotaged . | . . . Parts Stolen . | . . . Parts Stripped . | . . . Power Chain Reactions . | . . . Alert | -11 -10 -10 ------- Run | Yrd Mat Min Maximum Alert Level . | . . . Low Security (%) 100 | 100 100 100 Level 1 . | . . . Level 2 . | . . . Level 3 . | . . . Level 4 . | . . . Level 5 . | . . . High Security . | . . . Max Security . | . . . Peak Influence 92 | 10 92 70 Initial . | . . . Average 24 | 1 24 27 Influence Increases 655 | 15 390 250 Destroy 0b10 Robot/C 400 | . 240 160 Destroy 0b10 Robot/NC 50 | 15 30 5 Destroy Leader 96 | . 56 40 Disable Machine 30 | . 15 15 Destroy Structure 4 | . 4 . Lose Combat Pursuer 75 | . 45 30 Influence Decreases 655 | 15 390 250 Time Decay 580 | 15 350 215 Lost Part 75 | . 40 35 Squads Dispatched 1 | . 1 . Investigation . | . . . Extermination . | . . . Reinforcement 1 | . 1 . Assault . | . . . Garrison . | . . . Intercept . | . . . Searches Triggered . | . . . Construction Impeded . | . . . Haulers Reinforced . | . . . Active Scanning Responses . | . . . Cargo Convoy Interrupts . | . . . Stealth | -11 -10 -10 --------- Run | Yrd Mat Min Distress Signals 4 | . 3 1 Communications Jammed . | . . . Distress Signals . | . . . Times Spotted 34 | . 24 10 Peak Tracking Total 4 | . 4 3 Tactical Retreats 3 | . 2 1 Traps | -11 -10 -10 ------- Run | Yrd Mat Min Traps Triggered 5 | . 5 . Indirectly . | . . . Trap Hack Attempts . | . . . Triggered . | . . . Disarmed . | . . . Reprogrammed . | . . . Reused . | . . . Traps Extracted . | . . . Installed . | . . . Triggered . | . . . Machines | -11 -10 -10 ---------- Run | Yrd Mat Min Machines Disabled 2 | . 1 1 Max in Single Turn 1 | . 1 1 Machines Repaired . | . . . Machines Dismantled . | . . . Machines Sabotaged . | . . . Overloaded Fab Kills . | . . . Hacking | -11 -10 -10 --------- Run | Yrd Mat Min Machines Accessed . | . . . Terminals . | . . . Fabricators . | . . . Repair Stations . | . . . Recycling Units . | . . . Scanalyzers . | . . . Garrison Access . | . . . Total Hacks . | . . . Successful . | . . . Failed . | . . . Catastrophic . | . . . Database Lockouts . | . . . Manual . | . . . Terminals . | . . . Fabricators . | . . . Repair Stations . | . . . Recycling Units . | . . . Scanalyzers . | . . . Garrison Access . | . . . Terminal Hacks . | . . . Fabricator Hacks . | . . . Repair Station Hacks . | . . . Recycling Unit Hacks . | . . . Scanalyzer . | . . . Garrison Access Hacks . | . . . Unauthorized Hacks . | . . . Terminals . | . . . Fabricators . | . . . Repair Stations . | . . . Recycling Units . | . . . Scanalyzers . | . . . Garrison Access . | . . . Data Cores Recovered . | . . . Used . | . . . Hacking Detections . | . . . Full Trace Events . | . . . Feedback Events . | . . . Feedback Blocked . | . . . Robot Schematics Acquired . | . . . Robots Built . | . . . Authchips . | . . . Time . | . . . Total Robot Build Rating . | . . . Part Schematics Acquired . | . . . Parts Built . | . . . Authchips . | . . . Time . | . . . Total Part Build Rating . | . . . Part Studies Acquired . | . . . Parts Repaired . | . . . Time . | . . . Parts Recycled . | . . . Recycled Matter . | . . . Retrieved Matter . | . . . Retrieved Components . | . . . Parts Scanalyzed . | . . . Part Schematics Acquired . | . . . Parts Damaged . | . . . Bothacking | -11 -10 -10 ------------ Run | Yrd Mat Min Used RIF Installer . | . . . Robots Hacked . | . . . Non-combat . | . . . Combat . | . . . Robot Hacks Applied . | . . . Relay Couplers Released . | . . . Fabnet Peak Effective % . | . . . Robots Rewired . | . . . Allies Hacked . | . . . Hacks Repelled . | . . . Allies | -11 -10 -10 -------- Run | Yrd Mat Min Total Allies . | . . . Largest Group . | . . . Highest-Rated Group . | . . . Highest-Rated Ally . | . . . Total Orders . | . . . Ally Attacks . | . . . Total Damage . | . . . Kills . | . . . Allies Corrupted . | . . . Allies Melted . | . . . Intel | -11 -10 -10 ------- Run | Yrd Mat Min Active Infowar (turns) . | . . . Robot Analysis Total . | . . . Derelict Logs Recovered . | . . . Drone Launches . | . . . Drone Recoveries . | . . . Exploration | -11 -10 -10 ------------- Run | Yrd Mat Min Turns Passed 2040 | 140 1294 606 Spaces Moved 671 | 71 439 161 Core 5 | 5 . . Treads 666 | 66 439 161 Legs . | . . . Wheels . | . . . Hover . | . . . Flight . | . . . Fastest Speed 50 | 50 160 160 Average Speed 224 | 152 237 222 Slowest Speed 320 | 160 320 240 Overloaded Moves . | . . . Propulsion Burnouts . | . . . Robots Hopped . | . . . Potential Cave-ins . | . . . Cave-ins Triggered . | . . . Exploration Rate (%) 43 | 4 78 48 Regions Visited 2 Branch Regions 1 Pre-discovered Areas . | . . . Known Exits Taken 1 | . 1 . Unknown Exits Taken 1 | 1 . . Scrap Searched 1 | . . 1 Spaces Dug . | . . . Terrain Destroyed . | . . . Melee . | . . . Projectile . | . . . AOE . | . . . Terrain Rammed . | . . . Walls Destroyed . | . . . Machines Disabled . | . . . Actions | -11 -10 -10 --------- Run | Yrd Mat Min Total 972 | 89 560 323 Wait 124 | . 15 109 Move 669 | 70 438 161 Hop . | . . . Pick Up 24 | 4 18 2 Fast Attach 16 | 5 10 1 Attach 12 | 1 7 4 Detach . | . . . Swap 9 | 1 6 2 Drop 4 | 2 2 . Fire 107 | 6 62 39 Melee 7 | . 2 5 Ram . | . . . Kick . | . . . Crush . | . . . Escape Stasis . | . . . Rewire . | . . . Trap . | . . . Miscellaneous . | . . . Route ------- -11/Scrapyard -10/Materials (discovered 3 exits: *Mat x2 / *Min) -10/Mines (discovered 1 exit: *Mat) History --------- Turn | Location | Event 53 | -11/Scrapyard | Discovered new exit (range 16) 141 | -11/Scrapyard | Entered Materials 316 | -10/Materials | Build established: Mutant 692 | -10/Materials | Lost 3 parts (1n2w) 766 | -10/Materials | Discovered new exit (range 16) 821 | -10/Materials | Identified exit to Materials 932 | -10/Materials | Discovered new exit (range 16) 1194 | -10/Materials | Discovered exit to Materials (range 11) 1430 | -10/Materials | Identified exit to Mines 1435 | -10/Materials | Entered Mines 1463 | -10/Mines | Core integrity fell below 50% 1495 | -10/Mines | Lost 3 parts (1p1n1w) 1741 | -10/Mines | Core integrity fell below 20% 1786 | -10/Mines | Discovered exit to Materials (range 16) 1912 | -10/Mines | Excavation squad dispatched 1912 | -10/Mines | A large section of the Mines collapsed 2041 | -10/Mines | Destroyed by as-65466 with Assembled Blade Last Messages --------------- Lgt. Treads destroyed. G-34 Mercenary destroyed. Switching to secondary target: G-47 Trooper. T-07 Excavator destroyed. G-47 Trooper suffers critical hit (Destroy). Destroyed Lgt. Nuclear Core. G-47 Trooper destroyed. Acquired 14 matter. EXIT=FOUND: MATERIALS Acquired 42 matter. Acquired Sml. Laser. Acquired 33 matter. Acquired Particle Gun. K-01 Serf collects debris. R-06 Scavenger crushed by falling debris. ALERT: Suspicious cave-in, suspected derelict activity in mines. Dispatching escorted excavation squad. Press '.', 'keypad 5' or scroll the mouse wheel to wait a turn. Map ----- +----------------------------------------------------+ | ??????????????????####?## #?????????????????????? | | ????????????????????????## #?????????????????????? | | ??????????????????????????##?????????????????????? | | ?????????????????????????????????????????????????? | | ?????????????????????????????????????????????????? | | ?????????????????????????????????????????????????? | | ??#??????????????????????????????????????????????? | | # ####???????????????????????????????????????????? | | #??????????????????????????????????????????? | | #####????????????????????????????????????????????? | | ?????????????????????????????????????????????????? | | ????????? ???????????????????????????????????????? | | ??????? ????????????????????????????????????????? | | ##### #?????????????????????????????????????????? | | #?????????????????????????????????????????? | | #?????????????????????????????????????????? | | ########?????????????????????????????????????????? | | #????????????????????????????????????????????????? | | ?????????????????????????????????????????????????? | | ?????????????????????????????????????????????????? | | ?????????????????????????????????????????????????? | | ????????????????????????###??????????????????????? | | ##?????????????????????# ##?????????????????????? | | ##???????????????????# ##????????????????????? | | #?????????????????#######=####?????????????????? | | ###########?####### @a# ????????????? | | ### ######## ????????????? | | ########### ## ##?????????????????????????? | | ??????????# #??????????????????????????? | | ??????????##### #??????????????????????????? | | ??????????????## #??????????????????????????? | | ???????????????## ##??????????????????????????? | | ????????????????## ##???????????????????????????? | | ?????????????????####????????????????????????????? | | ?????????????????????????????????????????????????? | | ?????????????????????????????????????????????????? | | ?????????????????????????????????????????????????? | | ?????????????????????????????????????????????????? | | | | | | | | | | | | | | | | | | | | | | | | | +----------------------------------------------------+ Best States ------------- Heat Dissipation 25 Energy Generation 10 Energy Capacity 250 Matter Stores 300 Matter Capacity 300 Sight Range 16 Terrain Scan Density 10 Evasion (%) 40 Recoil Reduction 2 Item Schematics ----------------- None Robot Schematics ------------------ None Fabricated ------------ Nothing Repaired ---------- Nothing Studied --------- None Alien Tech Used ----------------- None Achievements -------------- None Challenges ------------ None Game ------ Seed TripodFieldWell Manual? 0 Play Time 00:12:28 Cumulative 59.8 hours Start 2026.04.19 @ 09:47:41 End 2026.04.19 @ 09:57:11 Sessions 1 Manual Loads 0 Difficulty Rogue Special Mode None Game No. 62 Rogue 8 Adventurer 54 Explorer 0 Win Type - Total 1 Types 1/0/0/0/0/0/0/0/0/0 Lore% 31 Gallery% 40 Achievement% 37 Wizard Run 0 Options --------- Layout 1 ASCII 0 Keyboard 0 Movement Mouse Keybinds 1 Fullscreen 1 Font 32/Tamsyn Map View 50x35 Zoom Use 0% Tactical HUD 0 Map Filters NONE Filters NONE Steam 1 RUN: 7d233c84-a103-48ed-8578-a1880378c955